bitfinex/quotes_BTCUSD_20250417
["timestamp","ask_amount","ask_price","bid_price","bid_amount"]
[1744883072710,0.00049719,84467.0,84466.0,0.74602957]
[1744883074441,0.00049719,84467.0,84466.0,0.79442957]
[1744883074995,0.002,84469.0,84468.0,0.23677605]
[1744883075120,0.0020452,84469.0,84468.0,0.35859132]
[1744883075319,0.0020452,84469.0,84468.0,0.35622396]
[1744883076778,0.0020452,84469.0,84468.0,0.35822396]
[1744883079389,0.0020452,84469.0,84468.0,0.35622396]
[1744883081000,0.0020452,84469.0,84468.0,0.35722396]
[1744883081988,0.0020452,84469.0,84468.0,0.48962396]
[1744883091263,0.0020452,84469.0,84468.0,0.48862396]
[1744883093206,0.0020452,84469.0,84468.0,0.35622396]
[1744883093408,0.0020452,84469.0,84468.0,0.48862396]
[1744883099921,0.0020452,84469.0,84468.0,0.35622396]
[1744883100120,0.0130452,84469.0,84466.0,0.01183908]
[1744883100326,0.0030452,84469.0,84468.0,0.23677605]
[1744883111533,0.0030452,84469.0,84468.0,0.36917605]
[1744883118539,0.0030452,84469.0,84468.0,0.23677605]
[1744883127220,0.0030452,84469.0,84468.0,0.35859148]
[1744883127539,0.0030452,84469.0,84468.0,0.53682396]
[1744883127904,0.0030452,84469.0,84468.0,0.53782396]
[1744883134027,0.0030452,84469.0,84468.0,0.87782396]
[1744883137146,0.0030452,84469.0,84468.0,0.89236481]
[1744883137318,0.0030452,84469.0,84468.0,0.91448165]
[1744883138330,0.0030452,84469.0,84468.0,0.8999408]
[1744883141208,0.0030452,84469.0,84468.0,0.59989289]
[1744883141409,0.0030452,84469.0,84468.0,0.73229289]
[1744883142434,0.0030452,84469.0,84468.0,0.71017605]
[1744883144015,0.0030452,84469.0,84468.0,0.82962396]
[1744883144216,0.0030452,84469.0,84468.0,0.69722396]
[1744883144379,0.0030452,84469.0,84468.0,0.82958396]
[1744883149943,0.0030452,84469.0,84468.0,0.87808396]
[1744883150166,0.0030452,84469.0,84468.0,0.74572396]
[1744883150359,0.0030452,84469.0,84468.0,0.87812396]
[1744883151177,0.0020452,84469.0,84468.0,0.87712396]
[1744883151835,0.0020452,84469.0,84468.0,0.82862396]
[1744883154963,0.0020452,84469.0,84468.0,0.82858396]
[1744883157131,0.0020452,84469.0,84468.0,0.87448396]
[1744883157923,0.0020452,84469.0,84468.0,0.93562481]
[1744883158082,0.0020452,84469.0,84468.0,0.93662481]
[1744883158262,0.0020452,84469.0,84468.0,0.93562481]
[1744883159107,0.0020452,84469.0,84468.0,0.93762481]
[1744883160140,0.0020452,84469.0,84468.0,0.93862481]
[1744883160668,0.0020452,84469.0,84468.0,0.92308396]
[1744883160820,0.0020452,84469.0,84468.0,0.74582396]
[1744883161169,0.0020452,84469.0,84468.0,0.83258396]
[1744883161746,0.0020452,84469.0,84468.0,0.83158396]
[1744883172016,0.0020452,84469.0,84468.0,0.69922396]
[1744883172215,0.0020452,84469.0,84468.0,0.83158396]
[1744883174400,0.0020452,84469.0,84468.0,0.93188396]
[1744883174584,0.0020452,84469.0,84468.0,0.88238396]
[1744883178524,0.0020452,84469.0,84468.0,0.83258396]
[1744883178944,0.0020452,84469.0,84468.0,0.13636]
[1744883179152,0.0526452,84469.0,84468.0,0.13636]
[1744883179368,0.0526452,84469.0,84468.0,0.004]
[1744883179883,0.0526452,84469.0,84468.0,0.002]
[1744883180089,0.0526452,84469.0,84468.0,0.001]
[1744883180292,0.33561845,84469.0,84468.0,0.002]
[1744883180487,0.34561845,84469.0,84468.0,0.002]
[1744883181539,0.34561845,84469.0,84468.0,0.001]
[1744883200374,0.34661845,84469.0,84468.0,0.001]
[1744883211316,0.23677945,84467.0,84465.0,0.24862309]
[1744883211458,0.00236982,84466.0,84464.0,0.24862642]
[1744883211664,0.01236982,84466.0,84464.0,0.24862642]
[1744883212173,0.2391515,84466.0,84464.0,0.24862642]
[1744883212379,0.00236982,84466.0,84464.0,0.24862642]
[1744883212573,0.01236982,84466.0,84464.0,0.24862642]
[1744883213546,0.01236982,84466.0,84465.0,0.23678446]
[1744883213667,0.01236982,84466.0,84465.0,0.23778446]
[1744883214179,0.01236982,84466.0,84465.0,0.23678446]
[1744883214992,0.01236982,84466.0,84464.0,0.24862642]
[1744883215191,0.01236982,84466.0,84465.0,0.001]
[1744883216463,0.23915148,84466.0,84465.0,0.001]
[1744883216911,0.01236982,84466.0,84465.0,0.001]
[1744883217356,0.01236982,84466.0,84464.0,0.23678566]
[1744883217802,0.01236982,84466.0,84464.0,0.23778566]
[1744883218464,0.01236982,84466.0,84465.0,0.23678446]
[1744883219439,0.24915283,84466.0,84464.0,0.001]
[1744883219670,0.24678301,84466.0,84464.0,0.23778675]
[1744883219897,0.00236982,84465.0,84464.0,0.23778675]
[1744883220119,0.01236982,84465.0,84464.0,0.23778675]
[1744883220763,0.01236982,84465.0,84464.0,0.23678675]
[1744883220966,0.24480714,84467.0,84464.0,0.23678675]
[1744883221166,0.25480714,84467.0,84464.0,0.23678675]
[1744883221309,0.23678286,84466.0,84463.0,0.24862938]
[1744883221507,0.24678286,84466.0,84463.0,0.24862938]
[1744883221960,0.24678286,84466.0,84464.0,0.001]
[1744883222164,0.01,84466.0,84464.0,0.2377852]
[1744883222340,0.01,84466.0,84464.0,0.2367852]
[1744883224419,0.01,84466.0,84464.0,0.2377852]
[1744883225443,0.01,84466.0,84465.0,0.23678446]
[1744883227251,0.01,84466.0,84465.0,0.23778446]
[1744883231379,0.25065774,84469.0,84466.0,0.23677908]
[1744883231527,0.26065774,84469.0,84466.0,0.23677908]
[1744883231984,0.23677605,84468.0,84466.0,0.23677908]
[1744883232203,0.24677605,84468.0,84466.0,0.23677908]
[1744883232560,0.24677605,84468.0,84466.0,0.23777908]
[1744883233335,0.011,84468.0,84467.0,0.23677886]
[1744883233730,0.021,84468.0,84467.0,0.23677886]
[1744883233957,0.001,84468.0,84467.0,0.23677886]
[1744883234680,0.01,84468.0,84467.0,0.23677886]
[1744883234883,0.01,84468.0,84467.0,0.23777886]
[1744883235164,0.011,84468.0,84467.0,0.23777886]
[1744883237481,0.001,84468.0,84467.0,0.23777886]
[1744883237926,0.011,84468.0,84467.0,0.23777886]
[1744883243877,0.001,84468.0,84467.0,0.23777886]
[1744883244086,0.011,84468.0,84467.0,0.23777886]
[1744883244532,0.001,84468.0,84467.0,0.23777886]
[1744883245089,0.011,84468.0,84467.0,0.23777886]
[1744883246552,0.011,84468.0,84467.0,0.44972677]
[1744883246751,0.001,84468.0,84467.0,0.44972677]
[1744883252035,0.001,84468.0,84467.0,0.002]
[1744883252684,0.001,84468.0,84467.0,0.23877886]
[1744883253581,0.011,84468.0,84467.0,0.23877886]
[1744883254860,0.24777605,84468.0,84467.0,0.002]
[1744883266089,0.011,84468.0,84467.0,0.002]
[1744883266295,0.011,84468.0,84467.0,0.23877886]
[1744883266509,0.011,84468.0,84467.0,0.002]
[1744883267331,0.24777605,84468.0,84467.0,0.002]
[1744883267934,0.24877605,84468.0,84467.0,0.002]
[1744883270292,0.29567605,84468.0,84467.0,0.002]
[1744883271094,0.46302396,84468.0,84467.0,0.001]
[1744883271296,0.23681494,84455.0,84453.0,0.13236]
[1744883273064,0.23681494,84455.0,84453.0,0.13336]
[1744883274096,0.2368153,84454.0,84453.0,0.001]
[1744883274290,0.2822153,84454.0,84453.0,0.001]
[1744883274487,0.3022153,84454.0,84453.0,0.001]
[1744883275016,0.23683066,84449.0,84446.0,0.24867902]
[1744883275219,0.24867212,84449.0,84446.0,0.24867902]
[1744883275521,0.23683296,84448.0,84446.0,0.01184188]
[1744883275736,0.0218416,84448.0,84440.0,0.01184272]
[1744883275930,0.24868067,84446.0,84443.0,0.23684615]
[1744883276338,0.24868067,84446.0,84444.0,0.23684299]
[1744883276538,0.23684208,84445.0,84443.0,0.0118423]
[1744883276741,0.24868067,84446.0,84443.0,0.24868639]
[1744883276938,0.01184188,84446.0,84444.0,0.23684112]
[1744883277138,0.02184188,84446.0,84444.0,0.23684112]
[1744883279076,0.02184188,84446.0,84444.0,0.23784112]
[1744883280824,0.24683774,84446.0,84444.0,0.23784112]
[1744883281439,0.23684054,84445.0,84444.0,0.001]
[1744883281663,0.23683828,84446.0,84444.0,0.001]
[1744883282164,0.24683828,84446.0,84444.0,0.001]
[1744883282466,0.24683828,84446.0,84443.0,0.26030636]
[1744883282669,0.24683828,84446.0,84444.0,0.001]
[1744883283789,0.24683828,84446.0,84443.0,0.01162018]
[1744883283790,0.23684335,84444.0,84443.0,0.01162018]
[1744883283935,0.23684054,84445.0,84443.0,0.01162018]
[1744883284135,0.23684054,84445.0,84442.0,0.23684687]
[1744883284363,0.24868256,84445.0,84444.0,0.001]
[1744883284895,0.24868256,84445.0,84442.0,0.24868931]
[1744883285274,0.25868256,84445.0,84443.0,0.002]
[1744883285777,0.25868256,84445.0,84442.0,0.24868931]
[1744883286845,0.25868256,84445.0,84443.0,0.23684576]
[1744883287731,0.25868256,84445.0,84443.0,0.23784576]
[1744883288285,0.25868256,84445.0,84443.0,0.23984576]
[1744883289899,0.23684335,84444.0,84443.0,0.003]
[1744883290528,0.24684335,84444.0,84443.0,0.003]
[1744883290726,0.24684335,84444.0,84443.0,0.001]
[1744883291096,0.23685057,84442.0,84440.0,0.02356532]
[1744883291668,0.23685057,84442.0,84440.0,0.24857697]
[1744883292252,0.23689575,84442.0,84440.0,0.24857697]
[1744883292552,0.23689575,84442.0,84440.0,0.25257697]
[1744883294173,4.518e-05,84442.0,84441.0,0.23685176]
[1744883295350,4.518e-05,84442.0,84441.0,0.23885176]
[1744883295909,4.518e-05,84442.0,84441.0,0.23985176]
[1744883312979,4.518e-05,84442.0,84441.0,0.24085176]
[1744883313178,4.518e-05,84442.0,84441.0,0.79559967]
[1744883315586,4.518e-05,84442.0,84441.0,0.92795967]
[1744883319079,4.518e-05,84442.0,84441.0,0.87855967]
[1744883319276,4.518e-05,84442.0,84441.0,0.83265967]
[1744883319595,4.518e-05,84442.0,84441.0,0.71321176]
[1744883319751,4.518e-05,84442.0,84441.0,0.58085176]
[1744883319954,4.518e-05,84442.0,84441.0,0.71317176]
[1744883331346,4.518e-05,84442.0,84441.0,0.71217176]
[1744883338158,0.23680689,84457.0,84454.0,0.23681386]
[1744883338362,0.24680689,84457.0,84454.0,0.23681386]
[1744883338569,0.23680995,84456.0,84454.0,0.23681386]
[1744883338890,0.24680995,84456.0,84453.0,0.2486586]
[1744883339091,0.23681299,84455.0,84453.0,0.2486586]
[1744883339293,0.24865361,84455.0,84451.0,0.23682372]
[1744883339494,0.2368153,84454.0,84451.0,0.23682372]
[1744883339723,0.24865506,84455.0,84452.0,0.01184104]
[1744883339857,0.23681824,84453.0,84451.0,0.23682369]
[1744883340059,0.24681824,84453.0,84450.0,1.24862222]
[1744883340285,0.23682117,84452.0,84450.0,1.24862222]
[1744883340893,0.24682117,84452.0,84450.0,1.24862222]
[1744883341196,0.23682117,84452.0,84450.0,1.24862222]
[1744883342146,0.24865914,84453.0,84450.0,1.24862222]
[1744883342398,0.001,84452.0,84450.0,1.24862222]
[1744883342711,0.001,84452.0,84451.0,0.23682372]
[1744883342933,0.23681881,84453.0,84451.0,0.23682372]
[1744883343142,0.23682163,84452.0,84450.0,1.24862237]
[1744883344375,0.24682163,84452.0,84450.0,1.24862237]
[1744883344950,0.24882163,84452.0,84450.0,0.99995482]
[1744883345152,0.24682163,84452.0,84450.0,0.99995482]
[1744883346126,0.23782163,84452.0,84450.0,0.99995482]
[1744883347110,0.001,84452.0,84450.0,1.23677949]
[1744883347624,0.23782188,84452.0,84450.0,1.23678044]
[1744883349147,0.24782188,84452.0,84450.0,1.23678044]
[1744883351187,0.011,84452.0,84450.0,1.23678044]
[1744883351416,0.011,84452.0,84450.0,0.99995482]
[1744883351552,0.24782148,84452.0,84450.0,0.99995482]
[1744883352123,0.24782148,84452.0,84451.0,0.02212108]
[1744883352462,0.23782148,84452.0,84451.0,0.02212108]
[1744883353290,0.23782148,84452.0,84450.0,0.99995482]
[1744883354545,0.24782148,84452.0,84450.0,0.99995482]
[1744883354759,0.24682148,84452.0,84450.0,0.99995482]
[1744883355238,0.24882148,84452.0,84450.0,0.99995482]
[1744883355415,0.23682372,84451.0,84450.0,0.99995482]
[1744883355788,0.001,84452.0,84450.0,1.23678134]
[1744883356407,0.0118409,84453.0,84450.0,1.23678134]
[1744883356825,0.001,84451.0,84450.0,1.23678134]
[1744883357894,0.23782372,84451.0,84450.0,0.99995482]
[1744883358115,0.23682372,84451.0,84450.0,0.99995482]
[1744883358497,0.24682372,84451.0,84450.0,0.99995482]
[1744883358651,0.24782372,84451.0,84450.0,0.99995482]
[1744883358852,0.24882372,84451.0,84450.0,0.99995482]
[1744883359060,0.29462372,84451.0,84450.0,0.99995482]
[1744883359268,0.34302372,84451.0,84450.0,0.99995482]
[1744883359668,0.46147163,84451.0,84450.0,0.99995482]
[1744883360093,0.46347163,84451.0,84450.0,0.99995482]
[1744883361294,0.46147163,84451.0,84450.0,0.99995482]
[1744883361682,0.46747163,84451.0,84450.0,0.99995482]
[1744883361854,0.46147163,84451.0,84450.0,0.99995482]
[1744883362364,0.46847163,84451.0,84450.0,1.00095482]
[1744883362570,0.47147163,84451.0,84450.0,1.00095482]
[1744883363333,0.88237163,84451.0,84450.0,1.00095482]
[1744883370399,0.65872372,84451.0,84450.0,1.00095482]
[1744883372472,0.4219,84451.0,84450.0,1.00095482]
[1744883373062,0.4219,84451.0,84450.0,1.23778134]
[1744883373909,0.4189,84451.0,84450.0,1.23778134]
[1744883374099,0.4189,84451.0,84450.0,1.25983102]
[1744883374298,0.4209,84451.0,84450.0,1.25983102]
[1744883374515,0.01,84451.0,84450.0,1.30913102]
[1744883374713,0.01,84451.0,84450.0,1.47577893]
[1744883375000,0.003,84451.0,84450.0,1.47477893]
[1744883375406,0.008,84451.0,84450.0,1.47477893]
[1744883375720,0.003,84451.0,84450.0,1.47477893]
[1744883375863,0.003,84451.0,84450.0,1.47577893]
[1744883376064,0.001,84451.0,84450.0,1.47577893]
[1744883377286,0.001,84451.0,84450.0,1.47777893]
[1744883377530,0.001,84451.0,84450.0,1.81777893]
[1744883389241,0.001,84451.0,84450.0,1.81777893]
[1744883389664,0.001,84451.0,84450.0,2.25111978]
[1744883391261,4.521e-05,84458.0,84457.0,0.23680689]
[1744883391408,4.521e-05,84458.0,84457.0,0.4884948]
[1744883391810,4.521e-05,84458.0,84457.0,0.51054448]
[1744883392672,0.00104521,84458.0,84457.0,0.51054448]
[1744883395365,0.00104521,84458.0,84457.0,0.25885657]
[1744883395541,0.01184062,84455.0,84451.0,0.34]
[1744883395769,0.23680806,84457.0,84454.0,0.24865577]
[1744883395883,0.23682372,84451.0,84450.0,1.00095482]
[1744883396086,0.24865929,84453.0,84450.0,1.38186]
[1744883396293,0.24865312,84455.0,84451.0,0.23682267]
[1744883396533,0.24865312,84455.0,84451.0,0.24866385]
[1744883396847,0.24865543,84456.0,84452.0,0.01184104]
[1744883397273,0.24865543,84456.0,84453.0,0.13224]
[1744883397475,0.23681256,84455.0,84453.0,0.13224]
[1744883398973,0.2368153,84454.0,84453.0,0.13224]
[1744883400167,0.23681256,84455.0,84453.0,0.13224]
[1744883400683,0.24864919,84457.0,84453.0,0.3690569]
[1744883400823,0.24864919,84457.0,84453.0,0.3808978]
[1744883401026,0.01288541,84458.0,84454.0,0.2486555]
[1744883401232,0.00104521,84458.0,84457.0,0.23680689]
[1744883401473,0.00104521,84458.0,84457.0,0.23917484]
[1744883401675,4.521e-05,84458.0,84457.0,0.23680689]
[1744883402273,0.00104521,84458.0,84457.0,0.23680689]
[1744883402690,4.521e-05,84458.0,84457.0,0.23680689]
[1744883403339,4.521e-05,84458.0,84457.0,0.23917472]
[1744883403955,0.00104521,84458.0,84457.0,0.23917472]
[1744883404150,0.00104521,84458.0,84457.0,0.23680689]
[1744883404761,0.00104521,84458.0,84457.0,0.35962263]
[1744883404962,0.00104521,84458.0,84457.0,0.3572548]
[1744883408476,0.23677082,84470.0,84467.0,0.23677681]
[1744883408644,0.01183824,84472.0,84468.0,0.13224]
[1744883408839,0.01183824,84472.0,84468.0,0.1440788]
[1744883409063,0.23677057,84470.0,84468.0,0.3690154]
[1744883409353,0.01183824,84472.0,84468.0,0.1440788]
[1744883409639,0.23677117,84470.0,84468.0,0.1440788]
[1744883409857,0.23677325,84469.0,84468.0,0.13224]
[1744883411028,0.24177325,84469.0,84468.0,0.13224]
[1744883411508,0.24277325,84469.0,84468.0,0.13224]
[1744883411844,0.24277325,84469.0,84457.0,0.2496452]
[1744883411845,0.23680409,84458.0,84457.0,0.001]
[1744883412201,0.23680409,84458.0,84457.0,0.13336]
[1744883412564,0.23680128,84459.0,84457.0,0.13336]
[1744883412950,0.28330392,84461.0,84457.0,0.13336]
[1744883413155,0.23679867,84460.0,84458.0,0.24864282]
[1744883413361,0.23679867,84460.0,84458.0,0.0118402]
[1744883413966,0.28330392,84461.0,84458.0,0.24864311]
[1744883414520,0.2951437,84461.0,84458.0,0.24864311]
[1744883414677,0.23879908,84460.0,84458.0,0.24864311]
[1744883414881,0.23679908,84460.0,84458.0,0.24864311]
[1744883415101,0.2486437,84461.0,84459.0,0.13236]
[1744883415303,0.2506437,84461.0,84459.0,0.13236]
[1744883415465,0.2486437,84461.0,84459.0,0.13236]
[1744883415661,0.24861485,84468.0,84465.0,0.24862191]
[1744883415907,0.001,84469.0,84467.0,0.23677786]
[1744883416121,0.001,84469.0,84468.0,0.23677605]
[1744883416282,0.001,84469.0,84467.0,0.23677786]
[1744883417084,0.24961263,84469.0,84466.0,0.24861537]
[1744883417283,0.23678166,84466.0,84463.0,0.24862736]
[1744883417494,0.01183908,84466.0,84460.0,0.01183992]
[1744883417693,0.23679007,84463.0,84460.0,0.24863569]
[1744883417895,0.01183936,84464.0,84462.0,0.23679187]
[1744883418133,0.23678617,84465.0,84462.0,0.24863151]
[1744883418447,0.003,84469.0,84466.0,0.01183908]
[1744883418871,0.23677619,84468.0,84466.0,0.24862074]
[1744883419099,0.01483866,84469.0,84466.0,0.24862074]
[1744883419230,0.24961396,84469.0,84466.0,0.24862074]
[1744883419432,0.23677688,84468.0,84466.0,0.24862074]
[1744883419632,0.23677688,84468.0,84465.0,0.01183922]
[1744883419633,0.23677923,84467.0,84465.0,0.24862358]
[1744883420063,0.23678479,84465.0,84463.0,0.24862956]
[1744883420233,0.003,84464.0,84463.0,0.24862956]
[1744883420444,0.01183908,84466.0,84464.0,0.23678496]
[1744883420647,0.24861568,84468.0,84464.0,0.24862432]
[1744883421004,0.23678446,84465.0,84462.0,0.24863168]
[1744883421209,0.23778446,84465.0,84462.0,0.24863168]
[1744883421361,0.003,84464.0,84462.0,0.24863168]
[1744883421568,0.001,84465.0,84463.0,0.23679007]
[1744883421896,0.237785,84465.0,84463.0,0.23679007]
[1744883422036,0.24862663,84464.0,84462.0,0.23679287]
[1744883422236,0.001,84465.0,84462.0,0.24863251]
[1744883422744,0.001,84465.0,84464.0,0.23678727]
[1744883422951,0.24862147,84466.0,84464.0,0.23678727]
[1744883423296,0.01183992,84460.0,84457.0,0.01284034]
[1744883423496,0.23679346,84462.0,84459.0,0.23680128]
[1744883423918,0.24863786,84461.0,84458.0,0.38100429]
[1744883424195,0.01183992,84460.0,84457.0,0.001]
[1744883424423,0.24864061,84460.0,84459.0,0.13236]
[1744883426876,0.24964061,84460.0,84459.0,0.13236]
[1744883427094,0.24964061,84460.0,84457.0,0.001]
[1744883427095,0.23680409,84458.0,84457.0,0.001]
[1744883428606,0.23780409,84458.0,84457.0,0.001]
[1744883434744,0.001,84458.0,84457.0,0.001]
[1744883434945,0.001,84458.0,84457.0,0.23780689]
[1744883435403,0.001,84458.0,84457.0,0.23880689]
[1744883438358,0.001,84458.0,84457.0,0.13436]
[1744883438559,0.001,84458.0,84457.0,0.37116689]
[1744883441409,0.001,84458.0,84457.0,0.002]
[1744883441612,0.001,84458.0,84457.0,0.23880689]
[1744883444899,0.001,84458.0,84457.0,0.37136689]
[1744883451287,0.001,84458.0,84457.0,0.36936689]
[1744883455864,0.001,84458.0,84457.0,0.23680689]
[1744883456140,0.001,84458.0,84457.0,0.13256]
[1744883456938,0.23780409,84458.0,84457.0,0.13256]
[1744883475989,0.23681892,84453.0,84451.0,0.01184118]
[1744883476321,0.23681892,84453.0,84452.0,0.13224]
[1744883478629,0.23681892,84453.0,84452.0,0.13324]
[1744883481550,0.24865644,84454.0,84452.0,0.13324]
[1744883481739,0.23681276,84455.0,84452.0,0.3700598]
[1744883482152,0.2368153,84454.0,84453.0,0.13224]
[1744883482348,0.23681276,84455.0,84453.0,0.36905766]
[1744883482511,0.2368153,84454.0,84453.0,0.13224]
[1744883483539,0.23681276,84455.0,84453.0,0.13224]
[1744883483734,0.24865074,84456.0,84453.0,0.38089757]
[1744883483990,0.24863012,84463.0,84458.0,0.24863884]
[1744883484134,0.0118395,84463.0,84458.0,0.24863884]
[1744883484319,0.0118395,84463.0,84458.0,0.2486417]
[1744883484524,0.0118395,84463.0,84460.0,0.23679769]
[1744883484525,0.24863155,84463.0,84460.0,0.23679769]
[1744883484832,0.23679321,84462.0,84459.0,0.24864134]
[1744883486908,0.23679679,84461.0,84459.0,0.24864134]
[1744883488124,0.23879679,84461.0,84459.0,0.24864134]
[1744883488441,0.25063657,84461.0,84458.0,0.13224]
[1744883488665,0.23680128,84459.0,84458.0,0.13224]
[1744883491338,0.23880128,84459.0,84458.0,0.13224]
[1744883492136,0.24345715,84459.0,84458.0,0.13224]
[1744883499767,0.00665587,84459.0,84458.0,0.13224]
[1744883500515,0.00665587,84459.0,84458.0,0.36904409]
[1744883502020,0.00665587,84459.0,84453.0,0.0118409]
[1744883502021,0.23682372,84451.0,84450.0,0.99995482]
[1744883502393,0.25180683,84451.0,84450.0,0.99995482]
[1744883504146,0.37125474,84451.0,84450.0,0.99995482]
[1744883504351,0.37325474,84451.0,84450.0,1.00095482]
[1744883504827,0.37325474,84451.0,84450.0,0.99995482]
[1744883504980,0.37125474,84451.0,84450.0,0.99995482]
[1744883505394,0.37325474,84451.0,84450.0,0.99995482]
[1744883506417,0.37425474,84451.0,84450.0,0.99995482]
[1744883509924,0.71425474,84451.0,84450.0,0.99995482]
[1744883511452,0.71525474,84451.0,84450.0,0.99995482]
[1744883515492,0.71425474,84451.0,84450.0,0.99995482]
[1744883515895,0.71525474,84451.0,84450.0,0.99995482]
[1744883516402,0.71425474,84451.0,84450.0,0.99995482]
[1744883516616,0.71225474,84451.0,84450.0,0.99995482]
[1744883516857,0.71325474,84451.0,84450.0,0.99995482]
[1744883517027,0.71225474,84451.0,84450.0,0.99995482]
[1744883517437,0.71425474,84451.0,84450.0,0.99995482]
[1744883517668,0.71525474,84451.0,84450.0,0.99995482]
[1744883522998,0.76055474,84451.0,84450.0,0.99995482]
[1744883523560,0.75357163,84451.0,84450.0,0.99995482]
[1744883523960,0.75657163,84451.0,84450.0,0.99995482]
[1744883524178,0.75557163,84451.0,84450.0,0.99995482]
[1744883524445,0.81351248,84451.0,84450.0,1e-08]
[1744883525150,0.81651248,84451.0,84450.0,1e-08]
[1744883525323,0.81851248,84451.0,84450.0,1e-08]
[1744883526030,0.81651248,84451.0,84450.0,1e-08]
[1744883526437,0.81251248,84451.0,84450.0,1e-08]
[1744883526847,0.81551248,84451.0,84450.0,1e-08]
[1744883527409,0.81751248,84451.0,84450.0,1e-08]
[1744883527610,0.94979248,84451.0,84450.0,1e-08]
[1744883527838,1.36069248,84451.0,84450.0,1e-08]
[1744883558753,1.36169248,84451.0,84450.0,1e-08]
[1744883559073,1.39498593,84451.0,84450.0,1e-08]
[1744883560023,1.39198593,84451.0,84450.0,1e-08]
[1744883560219,1.39598593,84451.0,84450.0,1e-08]
[1744883560426,1.39098593,84451.0,84450.0,1e-08]
[1744883560688,1.39398593,84451.0,84450.0,1e-08]
[1744883560913,1.39898593,84451.0,84450.0,1e-08]
[1744883561257,1.39598593,84451.0,84450.0,1e-08]
[1744883561460,1.39898593,84451.0,84450.0,1e-08]
[1744883561665,1.44893874,84451.0,84450.0,1e-08]
[1744883564413,1.56838665,84451.0,84450.0,1e-08]
[1744883564815,1.44893874,84451.0,84450.0,1e-08]
[1744883566707,1.41564529,84451.0,84450.0,1e-08]
[1744883566915,1.44888727,84451.0,84450.0,1e-08]
[1744883567113,1.41564529,84451.0,84450.0,1e-08]
[1744883567724,1.44888409,84451.0,84450.0,1e-08]
[1744883569754,1.25945163,84451.0,84450.0,1e-08]
[1744883571232,1.25745163,84451.0,84450.0,1e-08]
[1744883580847,1.12517163,84451.0,84450.0,1e-08]
[1744883581989,1.12517163,84451.0,84450.0,0.00100001]
[1744883582195,1.12517163,84451.0,84450.0,0.05070001]
[1744883582811,0.78517163,84451.0,84450.0,0.05070001]
[1744883586354,0.25482372,84451.0,84450.0,0.05070001]
[1744883586780,0.008,84451.0,84450.0,0.10050001]
[1744883587154,0.24182372,84451.0,84450.0,0.10050001]
[1744883587363,0.23682372,84451.0,84450.0,0.1005]
[1744883587564,0.23782372,84451.0,84450.0,0.1005]
[1744883587810,0.23982372,84451.0,84450.0,0.1005]
[1744883591351,0.24982372,84451.0,84450.0,0.1005]
[1744883595715,0.24982372,84451.0,84450.0,0.0507]
[1744883595928,0.36927163,84451.0,84450.0,0.001]
[1744883631267,0.23684896,84442.0,84441.0,0.047]
[1744883631460,0.23684896,84442.0,84441.0,0.0471357]
[1744883631743,0.23684896,84442.0,84441.0,0.0481357]
[1744883634005,0.23684896,84442.0,84441.0,0.0021357]
[1744883654770,0.40684896,84442.0,84441.0,0.0021357]
[1744883654990,0.52629687,84442.0,84441.0,0.0021357]
[1744883655198,0.62469687,84442.0,84441.0,0.0021357]
[1744883655909,0.62469687,84442.0,84441.0,0.0011357]
[1744883656111,0.62469687,84442.0,84441.0,0.0021357]
[1744883656711,0.62669687,84442.0,84441.0,0.0021357]
[1744883657045,0.63836627,84442.0,84441.0,0.0021357]
[1744883657392,0.53836627,84442.0,84441.0,0.0011357]
[1744883657963,0.54036627,84442.0,84441.0,0.0011357]
[1744883659734,0.90280236,84442.0,84441.0,0.0011357]
[1744883661607,0.90380236,84442.0,84441.0,0.0011357]
[1744883664278,0.89189687,84442.0,84441.0,0.0011357]
[1744883666560,0.9036521,84442.0,84441.0,0.0011357]
[1744883671851,0.89189687,84442.0,84441.0,0.0011357]
[1744883672060,0.84319687,84442.0,84441.0,0.0011357]
[1744883677425,0.43229687,84442.0,84441.0,0.0011357]
[1744883679766,1.27989687,84442.0,84441.0,0.0011357]
[1744883680182,1.29443772,84442.0,84441.0,0.0011357]
[1744883680754,1.28943772,84442.0,84441.0,0.0011357]
[1744883680950,1.29343772,84442.0,84441.0,0.0011357]
[1744883681153,1.29543772,84442.0,84441.0,0.0011357]
[1744883691264,1.29543772,84442.0,84441.0,0.0001357]
[1744883700355,0.57686859,84435.0,84431.0,0.0004214]
[1744883700570,0.23689665,84425.0,84421.0,0.0004214]
[1744883700783,0.23689665,84425.0,84416.0,0.0004215]
[1744883700784,0.2369191,84417.0,84416.0,1e-08]
[1744883700990,0.92726701,84417.0,84416.0,0.0004527]
[1744883701924,0.93557067,84417.0,84416.0,0.0004527]
[1744883702337,0.94057067,84417.0,84416.0,0.0014527]
[1744883703079,0.94357067,84417.0,84416.0,0.0014527]
[1744883703615,0.93526701,84417.0,84416.0,0.0014527]
[1744883706466,0.93526701,84417.0,84416.0,0.0024527]
[1744883706668,0.4049191,84417.0,84416.0,0.0024527]
[1744883708081,0.2449191,84417.0,84416.0,0.0024527]
[1744883714854,0.4049191,84417.0,84416.0,0.0024527]
[1744883716154,0.41322093,84417.0,84416.0,0.0024527]
[1744883730407,0.25322093,84417.0,84416.0,0.0024527]
[1744883732984,0.01630183,84417.0,84416.0,0.0024527]
[1744883733744,0.01330183,84417.0,84416.0,0.0024527]
[1744883734124,0.01030183,84417.0,84416.0,0.33657461]
[1744883734382,0.004,84417.0,84416.0,0.33657461]
[1744883734552,0.002,84417.0,84416.0,0.33657461]
[1744883734963,0.004,84417.0,84416.0,0.33657461]
[1744883735333,0.004,84417.0,84416.0,0.34857687]
[1744883736480,0.004,84417.0,84416.0,0.34957687]
[1744883738256,0.004,84417.0,84416.0,0.33757461]
[1744883744169,0.004,84417.0,84416.0,0.0024527]
[1744883744799,0.004,84417.0,84416.0,0.23937461]
[1744883745170,0.0261692,84417.0,84416.0,0.23937461]
[1744883746895,0.0261692,84417.0,84416.0,0.24832473]
[1744883747990,0.004,84417.0,84416.0,0.24832473]
[1744883749459,0.004,84417.0,84416.0,0.01140282]
[1744883750270,0.2409191,84417.0,84416.0,0.01140282]
[1744883750699,0.004,84417.0,84416.0,0.01140282]
[1744883751210,0.004,84417.0,84416.0,0.00940282]
[1744883751408,0.004,84417.0,84416.0,0.24632473]
[1744883751616,0.004,84417.0,84416.0,0.00940282]
[1744883751801,0.004,84417.0,84416.0,0.24632473]
[1744883753447,0.004,84417.0,84416.0,0.29632473]
[1744883755113,0.002,84417.0,84416.0,0.29632473]
[1744883755307,0.24874516,84424.0,84421.0,0.23690595]
[1744883757061,0.01184497,84424.0,84422.0,0.23690314]
[1744883757384,0.24874217,84425.0,84422.0,0.23690314]